bitfinex-derivatives/quotes_BNBF0:USTF0_20250329
["timestamp","ask_amount","ask_price","bid_price","bid_amount"]
[1743241869241,2.8038963,605.96,605.77,0.33015831]
[1743241869441,0.91366548,605.95,605.78,0.27116453]
[1743241869644,0.91366548,605.94,605.79,0.33014741]
[1743241869844,2.24067539,605.93,605.8,0.27116453]
[1743241870048,4.19716184,605.92,605.8,0.27116453]
[1743241870244,6.3199936,605.91,605.8,0.27116453]
[1743241870449,4.19716184,605.9,605.8,0.27116453]
[1743241870647,7.66144499,605.89,605.8,0.27116453]
[1743241870849,3.70222915,605.88,605.8,0.27116453]
[1743241871046,3.70222915,605.87,605.8,0.27116453]
[1743241871242,3.70222915,605.86,605.8,0.27116453]
[1743241871443,3.70239596,605.85,605.79,0.33014741]
[1743241871645,3.70239596,605.84,605.79,0.33014741]
[1743241871846,3.70239596,605.83,605.79,0.33014741]
[1743241872047,3.70239596,605.82,605.79,0.33014741]
[1743241872350,3.70239596,605.81,605.79,0.33014741]
[1743241872543,2.24069046,605.8,605.79,0.33014741]
[1743241872948,0.91356593,605.8,605.79,0.33014741]
[1743241873651,3.71787256,605.8,605.79,0.33014741]
[1743241874650,6.5058214,605.8,605.79,0.33014741]
[1743241874945,9.78344658,605.8,605.79,0.33014741]
[1743241875143,7.66094449,605.8,605.79,0.33014741]
[1743241875347,7.66149442,605.8,605.61,0.2872401]
[1743241875548,4.19713496,605.79,605.62,0.2712303]
[1743241875750,3.70206904,605.78,605.62,0.2712303]
[1743241875946,3.70206904,605.77,605.62,0.2712303]
[1743241876250,3.70206904,605.76,605.62,0.2712303]
[1743241876449,3.70206904,605.75,605.62,0.2712303]
[1743241876645,2.37506605,605.74,605.62,0.2712303]
[1743241876848,0.91348694,605.73,605.62,0.2712303]
[1743241877046,0.91348694,605.72,605.62,0.2712303]
[1743241877245,0.91348694,605.71,605.62,0.2712303]
[1743241877448,0.91348694,605.7,605.55,0.28729346]
[1743241877646,2.80430663,605.72,605.56,0.2712303]
[1743241878153,1.61088465,605.99,605.56,0.2712303]
[1743241878351,6.32189521,605.98,605.56,0.2712303]
[1743241878551,6.32189521,605.97,605.56,0.2712303]
[1743241878747,6.32189521,605.96,605.56,0.2712303]
[1743241878951,6.32189521,605.95,605.56,0.2712303]
[1743241879145,6.32189521,605.94,605.56,0.2712303]
[1743241879349,6.32239293,605.93,605.56,0.2712303]
[1743241879552,6.32239293,605.92,605.56,0.2712303]
[1743241879753,6.32239293,605.91,605.56,0.2712303]
[1743241879953,6.32239293,605.9,605.56,0.2712303]
[1743241880154,5.82739503,605.89,605.56,0.2712303]
[1743241880453,6.32490444,605.88,605.56,0.2712303]
[1743241880655,6.32490444,605.87,605.56,0.2712303]
[1743241880856,6.32490444,605.86,605.56,0.2712303]
[1743241881051,5.82987467,605.85,605.56,0.2712303]
[1743241881254,3.70499007,605.84,605.56,0.2712303]
[1743241881453,3.70499007,605.83,605.56,0.2712303]
[1743241881654,3.70499007,605.82,605.56,0.2712303]
[1743241881954,3.70499007,605.81,605.56,0.2712303]
[1743241882153,2.24225949,605.8,605.56,0.2712303]
[1743241882352,2.24225949,605.79,605.56,0.2712303]
[1743241882553,3.7079998,605.78,605.56,0.2712303]
[1743241882757,0.91420661,605.77,605.56,0.2712303]
[1743241882958,0.91420661,605.76,605.56,0.2712303]
[1743241883255,0.91420661,605.75,605.56,0.2712303]
[1743241883460,0.91420661,605.74,605.56,0.2712303]
[1743241883757,0.91420661,605.73,605.57,0.27123206]
[1743241883951,0.91420661,605.72,605.58,0.27123206]
[1743241884152,1.07453584,605.75,605.56,0.27123206]
[1743241884357,0.91596243,605.74,605.57,0.27123206]
[1743241884555,0.91596243,605.73,605.56,0.27123206]
[1743241884764,2.24645786,605.72,605.36,1.23730318]
[1743241884960,3.71169841,605.71,605.43,0.28732073]
[1743241885162,2.24645786,605.7,605.44,0.27128336]
[1743241885363,2.24683269,605.69,605.44,0.27128336]
[1743241885662,0.91596243,605.68,605.45,0.27127344]
[1743241885863,2.79827714,605.7,605.44,0.27127344]
[1743241886062,2.79827714,605.7,605.45,0.27127344]
[1743241886257,2.79827714,605.7,605.37,0.27127344]
[1743241886466,2.79827714,605.7,605.43,0.28726263]
[1743241886766,1.61088465,606.0,605.44,0.27127344]
[1743241886966,6.34115402,605.99,605.44,0.27127344]
[1743241887167,6.34115402,605.98,605.43,0.28726263]
[1743241887360,3.46287276,605.99,605.45,1.23730318]
[1743241887361,6.34115402,605.97,605.45,1.23730318]
[1743241887565,5.84616913,605.96,605.46,0.27118118]
[1743241887761,3.71534035,605.95,605.46,0.27118118]
[1743241887964,3.71534035,605.94,605.46,0.27118118]
[1743241888161,3.71534035,605.93,605.46,0.27118118]
[1743241888363,2.24852659,605.92,605.46,0.27118118]
[1743241888565,1.61088465,606.07,605.46,0.27118118]
[1743241888566,0.9167586,605.91,605.46,0.27118118]
[1743241888765,2.8029,605.94,605.45,1.23730318]
[1743241888962,1.07803846,605.9,605.46,0.27114686]
[1743241889166,0.91745681,605.89,605.46,0.27114686]
[1743241889367,1.07803846,605.9,605.46,0.27114686]
[1743241889665,1.07803846,605.9,605.57,1.23730318]
[1743241889868,1.07803846,605.89,605.58,0.27114686]
[1743241890268,1.07803846,605.88,605.58,0.27114686]
[1743241890470,1.07803846,605.88,605.57,1.23730318]
[1743241890765,1.61088465,606.28,605.58,0.27114423]
[1743241890964,6.34746731,606.27,605.58,0.27114423]
[1743241891164,6.34746731,606.26,605.58,0.27114423]
[1743241891369,6.34827827,606.25,605.58,0.27114423]
[1743241891563,6.34827827,606.24,605.58,0.27114423]
[1743241891766,6.34827827,606.23,605.58,0.27114423]
[1743241891966,6.34827827,606.22,605.58,0.27114423]
[1743241892168,6.34827827,606.21,605.59,1.23730318]
[1743241892365,6.34827827,606.2,605.59,1.23730318]
[1743241892567,6.34827827,606.19,605.6,0.27114423]
[1743241892766,6.34827827,606.18,605.6,0.27114423]
[1743241892967,6.34827827,606.17,605.6,0.27114423]
[1743241893166,5.85336809,606.16,605.6,0.27114423]
[1743241893365,5.85395767,606.15,605.6,0.27114423]
[1743241893570,5.85395767,606.14,605.6,0.27114423]
[1743241893771,3.72048825,606.13,605.68,1.23730318]
[1743241893967,2.25152218,606.12,605.69,0.27114423]
[1743241894167,2.25152218,606.12,605.68,1.23730318]
[1743241894168,2.25152218,606.11,605.68,1.23730318]
[1743241894372,0.91810379,606.1,605.69,0.27111109]
[1743241894566,0.91810379,606.09,605.69,0.27111109]
[1743241894768,2.80587414,606.13,605.69,0.27111109]
[1743241895070,1.07918236,606.09,605.69,0.27111109]
[1743241895669,1.61088465,606.33,605.69,0.27111109]
[1743241895873,6.35151524,606.32,605.69,0.27111109]
[1743241896069,6.35151524,606.31,605.69,0.27111109]
[1743241896269,5.85671541,606.3,605.84,1.23730318]
[1743241896567,6.35152794,606.29,605.85,0.33011471]
[1743241896768,5.85671541,606.28,605.86,0.27107721]
[1743241896967,3.72202146,606.27,605.86,0.27107721]
[1743241897169,3.72202146,606.26,605.86,0.27107721]
[1743241897366,3.72202146,606.25,605.86,0.27107721]
[1743241897575,4.38772896,606.24,605.87,0.33010381]
[1743241897871,7.85520408,606.23,605.88,0.27107721]
[1743241898071,6.35225552,606.22,605.88,0.27107721]
[1743241898266,5.85747088,606.21,605.88,0.27107721]
[1743241898472,5.85747088,606.2,605.89,0.33009292]
[1743241898673,5.85747088,606.19,605.9,0.27107721]
[1743241898971,3.46747512,606.21,605.9,0.27107721]
[1743241898972,5.85747088,606.18,605.9,0.27107721]
[1743241899168,6.35228776,606.17,605.9,0.27107721]
[1743241899368,6.35240349,606.16,605.9,0.27107721]
[1743241899573,6.35240349,606.15,605.9,0.27107721]
[1743241899765,6.35240349,606.14,605.9,0.27107721]
[1743241899967,6.35240349,606.13,605.9,0.27107721]
[1743241900266,6.35294952,606.12,605.89,0.33009292]
[1743241900474,9.82042464,606.11,605.89,0.33009292]
[1743241900673,6.35294952,606.1,605.89,0.33009292]
[1743241900867,5.85804732,606.09,605.89,0.33009292]
[1743241901070,5.85804732,606.08,605.89,0.33009292]
[1743241901271,5.85804732,606.07,605.89,0.33009292]
[1743241901466,5.85804732,606.06,605.89,0.33009292]
[1743241901670,5.85804732,606.05,605.9,0.2711327]
[1743241901875,5.85827942,606.04,605.89,0.33009292]
[1743241902070,5.85827942,606.03,605.89,0.33009292]
[1743241902266,5.85827942,606.02,605.89,0.33009292]
[1743241902578,3.72287965,606.01,605.89,0.33009292]
[1743241902773,3.72287965,606.0,605.89,0.33009292]
[1743241902973,3.72287965,605.99,605.89,0.33009292]
[1743241903272,2.25309512,605.98,605.89,0.33009292]
[1743241903470,2.25309512,605.97,605.89,0.33009292]
[1743241903670,2.25309512,605.96,605.89,0.33009292]
[1743241903870,0.91861533,605.95,605.89,0.33009292]
[1743241904071,2.80777003,605.97,605.89,0.33009292]
[1743241904267,0.91947489,605.96,605.89,0.33009292]
[1743241904472,2.80777003,605.97,605.89,0.33009292]
[1743241904666,1.9996479,605.96,605.89,0.33009292]
[1743241904972,0.9197363,605.95,605.89,0.33009292]
[1743241905167,1.07991155,605.96,605.89,0.33009292]
[1743241905473,1.99983837,605.95,605.89,0.33009292]
[1743241905670,1.07991155,605.95,605.89,0.33009292]
[1743241906369,6.76755525,607.1,605.89,0.33009292]
[1743241906370,2.00012839,605.94,605.89,0.33009292]
[1743241906674,1.07991155,605.93,605.89,0.33009292]
[1743241907272,0.92045004,605.92,605.89,0.33009292]
[1743241907474,0.92045004,605.91,605.89,0.33009292]
[1743241907772,0.92045004,605.9,605.89,0.33009292]
[1743241908473,2.00036159,605.9,605.89,0.33009292]
[1743241908865,3.33782661,605.9,605.89,0.33009292]
[1743241909674,5.07025686,605.9,605.89,0.33009292]
[1743241909873,6.54340471,605.9,605.89,0.33009292]
[1743241911470,6.54403218,605.9,605.89,0.33009292]
[1743241911669,5.07066273,605.9,605.89,0.33009292]
[1743241912975,3.33823248,605.9,605.89,0.33009292]
[1743241913369,2.41737657,605.9,605.89,0.33009292]
[1743241913573,3.3386979,605.9,605.89,0.33009292]
[1743241914173,5.07207415,605.9,605.89,0.33009292]
[1743241914972,3.73460913,605.9,605.89,0.33009292]
[1743241915175,3.33986931,605.9,605.89,0.33009292]
[1743241916776,5.07424268,605.9,605.89,0.33009292]
[1743241917685,5.07424268,605.9,605.89,0.60124427]
[1743241918584,2.81428492,605.9,605.89,0.33009292]
[1743241919181,2.00247375,605.9,605.89,0.33009292]
[1743241919581,1.07991155,605.9,605.89,0.33009292]
[1743241920685,2.00245333,605.9,605.89,0.33009292]
[1743241921086,3.34237509,605.9,605.89,0.33009292]
[1743241921489,4.8181536,605.9,605.89,0.33009292]
[1743241921688,6.55342475,605.9,605.89,0.33009292]
[1743241922983,6.55397137,605.9,605.89,0.33009292]
[1743241923387,5.07774558,605.9,605.89,0.33009292]
[1743241925290,5.07836932,605.9,605.89,0.33009292]
[1743241925590,2.8151827,605.9,605.89,0.33009292]
[1743241925790,3.73801891,605.9,605.89,0.33009292]
[1743241925986,2.00274776,605.9,605.89,0.33009292]
[1743241926191,1.07991155,605.9,605.89,0.33009292]
[1743241926389,1.07991155,605.9,605.89,0.60117403]
[1743241926690,1.61088465,606.28,605.89,0.60117403]
[1743241926890,6.38085238,606.27,605.9,0.27108111]
[1743241927092,6.38085238,606.26,605.91,0.33008202]
[1743241927289,6.38085238,606.25,605.92,0.27108111]
[1743241927491,6.38085238,606.24,605.92,0.27108111]
[1743241927686,6.38085238,606.23,605.92,0.27108111]
[1743241927891,6.38085238,606.22,605.92,0.27108111]
[1743241928192,6.38085238,606.21,605.91,0.33008202]
[1743241928392,9.86210521,606.2,605.91,0.33008202]
[1743241928592,6.38085238,606.19,605.91,0.33008202]
[1743241928790,6.38085238,606.18,605.91,0.33008202]
[1743241928993,5.88554221,606.17,605.91,0.33008202]
[1743241929192,5.88554221,606.16,605.91,0.33008202]
[1743241929393,5.88554221,606.15,605.91,0.33008202]
[1743241929595,9.8616687,606.14,605.91,0.33008202]
[1743241929794,6.38041587,606.13,605.91,0.33008202]
[1743241929995,5.88554221,606.12,605.91,0.33008202]
[1743241930197,5.88554221,606.11,605.91,0.33008202]
[1743241930395,5.88554221,606.1,605.91,0.33008202]
[1743241930696,5.88499617,606.09,605.91,0.33008202]
[1743241930892,5.88580557,606.08,605.91,0.33008202]
[1743241931097,5.88580557,606.07,605.91,0.33008202]
[1743241931297,5.88580557,606.06,605.91,0.33008202]
[1743241931498,3.74051776,606.05,605.92,0.2711181]
[1743241931692,2.26377137,606.04,605.92,0.2711181]
[1743241931898,2.26377137,606.03,605.92,0.2711181]
[1743241932096,2.26377137,606.02,605.92,0.2711181]
[1743241932294,0.92296649,606.01,605.92,0.2711181]
[1743241932498,2.82151262,606.02,605.92,0.2711181]
[1743241933002,0.92321204,606.01,605.92,0.2711181]
[1743241933298,1.08519716,606.01,605.92,0.2711181]
[1743241933600,0.92317927,606.0,605.92,0.2711181]
[1743241933900,1.08519716,606.0,605.92,0.2711181]
[1743241934299,1.08519716,605.99,605.92,0.2711181]
[1743241934500,0.9230713,605.98,605.92,0.2711181]
[1743241934699,3.74061147,605.97,605.92,0.2711181]
[1743241934898,3.74050067,605.96,605.92,0.2711181]
[1743241935097,3.74050067,605.95,605.92,0.2711181]
[1743241935295,3.74050067,605.94,605.92,0.2711181]
[1743241935494,3.74050067,605.93,605.92,0.2711181]
[1743241935803,8.70734808,605.93,605.91,0.33008202]
[1743241935999,5.88573799,605.92,605.91,0.33008202]
[1743241936200,9.36733315,605.92,605.91,0.33008202]
[1743241937394,9.86234245,605.92,605.91,0.33008202]
[1743241937996,9.36733315,605.92,605.91,0.33008202]
[1743241938498,9.86234207,605.92,605.91,0.33008202]
[1743241938693,9.36733315,605.92,605.91,0.33008202]
[1743241938894,9.36755701,605.92,605.91,0.33008202]
[1743241939294,9.86257128,605.92,605.91,0.33008202]
[1743241940495,3.4862364,605.92,605.91,0.33008202]
[1743241940697,6.38111243,605.92,605.65,0.28721165]
[1743241940893,6.38111243,605.92,605.26,1.23350027]
[1743241940894,6.38100523,605.91,605.47,1.23730318]
[1743241941092,3.48208453,605.92,605.57,0.28723655]
[1743241941093,6.38100523,605.9,605.57,0.28723655]
[1743241941298,6.38100523,605.89,605.57,0.28723655]
[1743241941503,6.38100523,605.88,605.48,0.33031644]
[1743241941699,6.38100523,605.87,605.57,0.28725433]
[1743241941897,5.88594722,605.86,605.57,0.28725433]
[1743241942095,5.88594722,605.85,605.48,0.33031644]
[1743241942296,3.74057097,605.84,605.57,0.28725788]
[1743241942496,3.74057097,605.83,605.57,0.28725788]
[1743241942699,3.74057097,605.82,605.48,0.33031644]
[1743241942896,3.74041871,605.81,605.57,0.28726144]
[1743241943098,2.26370945,605.8,605.57,0.28726144]
[1743241943300,3.7401411,605.79,605.48,0.33031644]
[1743241943501,3.7401411,605.78,605.49,0.2712616]
[1743241943702,2.26370945,605.77,605.5,0.33030553]
[1743241943904,2.26370945,605.76,605.51,0.2712616]
[1743241944198,3.34911648,605.75,605.52,0.33029462]
[1743241944403,2.26370945,605.74,605.53,0.2712616]
[1743241944705,2.26370945,605.73,605.53,0.60155076]
[1743241944906,0.92294329,605.72,605.54,0.2712616]
[1743241945206,0.92294329,605.71,605.54,0.2712616]
[1743241945406,0.92294329,605.7,605.53,0.33028916]
[1743241945600,0.92294329,605.69,605.54,0.27126249]
[1743241945800,0.92294329,605.68,605.54,0.27126249]
[1743241946002,1.08540703,605.69,605.54,0.27126249]
[1743241946404,1.08540703,605.68,605.54,0.27126249]
[1743241947004,1.08540703,605.67,605.54,0.27126249]
[1743241947507,1.62901176,605.97,605.54,0.27126249]
[1743241947707,6.37868699,605.96,605.54,0.27126249]
[1743241947909,6.37868699,605.95,605.54,0.27126249]
[1743241948209,6.37868699,605.94,605.54,0.27126249]
[1743241948409,5.88359475,605.93,605.54,0.27126249]
[1743241948704,5.74418494,605.92,605.54,0.27126249]
[1743241948908,0.92263518,605.91,605.54,0.27126249]
[1743241949106,0.92263518,605.9,605.54,0.27126249]
[1743241949307,3.48126388,605.92,605.55,0.33027825]
[1743241949515,1.08505431,605.9,605.56,0.27126249]
[1743241950003,0.92290769,605.89,605.56,0.27126249]
[1743241950202,3.73998287,605.88,605.56,0.27126249]
[1743241950407,3.73998287,605.87,605.57,0.33026735]
[1743241950605,2.26347559,605.86,605.58,0.27126249]
[1743241950806,2.26347559,605.85,605.67,1.23730318]
[1743241951108,2.26347559,605.84,605.68,0.27119525]
[1743241951308,5.08468193,605.83,605.68,0.27119525]
[1743241951505,2.26347559,605.82,605.68,0.27119525]
[1743241951705,0.92290769,605.81,605.68,0.27119525]
[1743241951906,0.92290769,605.8,605.68,0.27119525]
[1743241952207,0.92290769,605.79,605.68,0.27119525]
[1743241952408,1.08505431,605.8,605.68,0.27119525]
[1743241952805,0.92279244,605.79,605.68,0.27119525]
[1743241953008,2.00801037,605.78,605.6,0.27119525]
[1743241953208,1.08505431,605.78,605.61,0.27119525]
[1743241953403,1.08505431,605.78,605.6,0.27119525]
[1743241953607,1.08505431,605.78,605.61,0.27119525]
[1743241953808,1.08505431,605.77,605.61,0.27119525]
[1743241954404,1.08505431,605.76,605.61,0.27119525]
[1743241955209,1.08505431,605.75,605.62,0.33024008]
[1743241955405,1.08505431,605.75,605.63,0.27119525]
[1743241955710,1.62901176,606.04,605.63,0.60142988]
[1743241956010,6.38390815,606.03,605.64,0.27119525]
[1743241956210,6.38390815,606.02,605.64,0.27119525]
[1743241956411,6.38390815,606.01,605.64,0.27119525]
[1743241956608,6.38390815,606.0,605.64,0.27119525]
[1743241956805,3.48334058,606.02,605.64,0.27119525]
[1743241957010,6.38435876,606.01,605.64,0.27119525]
[1743241957212,6.38435876,606.0,605.64,0.27119525]
[1743241957413,6.38435876,605.99,605.65,0.27123184]
[1743241957615,6.38435876,605.98,605.66,0.27123184]
[1743241957814,8.01337052,605.97,605.64,0.27123184]
[1743241958114,6.38435876,605.96,605.65,0.27123184]
[1743241958314,6.38435876,605.95,605.66,0.27123184]
[1743241958512,6.38435876,605.95,605.63,0.33023463]
[1743241958513,6.38435876,605.94,605.67,0.27123184]
[1743241958716,6.38435876,605.93,605.64,0.27123184]
[1743241958913,6.38476392,605.92,605.63,0.33023463]
[1743241959118,6.38476392,605.91,605.64,0.27122879]
[1743241959418,6.38476392,605.9,605.64,0.27122879]
[1743241959615,6.38476392,605.89,605.64,0.27122879]
[1743241959820,5.88970801,605.88,605.64,0.27122879]
[1743241960019,5.88970801,605.87,605.64,0.27122879]
[1743241960214,5.88970801,605.86,605.63,0.33023463]
[1743241960413,5.88970801,605.85,605.63,0.33023463]
[1743241960618,5.88970801,605.84,605.63,0.33023463]
[1743241960823,5.88970801,605.83,605.63,0.33023463]
[1743241961120,3.74314562,605.82,605.64,0.2712321]
[1743241961319,3.74314562,605.81,605.64,0.2712321]
[1743241961518,2.26527231,605.8,605.64,0.2712321]
[1743241961716,2.26527231,605.79,605.64,0.2712321]
[1743241962020,2.26527231,605.78,605.64,0.2712321]
[1743241962220,2.26527231,605.77,605.63,0.33023463]
[1743241962419,2.26527231,605.76,605.63,0.33023463]
[1743241962621,0.92367082,605.75,605.64,0.27123681]
[1743241962920,0.92367082,605.74,605.64,0.27123681]
[1743241963121,0.92347911,605.73,605.64,0.27123681]
[1743241963318,1.08589521,605.75,605.64,0.27123681]
[1743241963521,0.92354069,605.74,605.64,0.27123681]
[1743241963719,0.92354069,605.73,605.65,0.27123453]
[1743241963916,1.08589521,605.74,605.64,0.27123453]
[1743241964222,0.9236374,605.73,605.64,0.27123453]
[1743241964417,1.08589521,605.74,605.63,0.33023463]
[1743241964620,1.08589521,605.73,605.64,0.27123325]
[1743241965222,0.92371842,605.72,605.63,0.33023463]
[1743241965421,0.92371842,605.71,605.63,0.33023463]
[1743241965619,0.92371842,605.7,605.63,0.33023463]
[1743241965918,0.92371842,605.69,605.63,0.33023463]
[1743241966120,0.92371842,605.68,605.63,0.33023463]
[1743241966320,1.08589521,605.71,605.63,0.33023463]
[1743241966518,1.08589521,605.67,605.63,0.33023463]
[1743241967122,0.92363765,605.66,605.63,0.33023463]
[1743241967425,1.08589521,605.67,605.63,0.33023463]
[1743241967620,2.00947978,605.66,605.63,0.33023463]
[1743241967818,0.92358001,605.65,605.63,0.33023463]
[1743241968017,1.08589521,605.66,605.63,0.33023463]
[1743241968218,1.08589521,605.64,605.63,0.33023463]
[1743241968718,3.35083754,605.64,605.63,0.33023463]
[1743241968919,3.35082675,605.64,605.63,0.33023463]
[1743241969523,5.08798398,605.64,605.63,0.33023463]
[1743241969918,3.74653288,605.64,605.63,0.33023463]
[1743241970122,3.35064971,605.64,605.63,0.33023463]
[1743241970522,6.97282822,605.64,605.63,0.33023463]
[1743241970824,7.46804326,605.64,605.63,0.33023463]
[1743241971317,7.46624773,605.64,605.63,0.33023463]
[1743241971624,9.8622493,605.64,605.63,0.33023463]
[1743241972024,9.8622493,605.64,605.35,1.52464764]
[1743241972323,6.38035252,605.63,605.36,0.27135686]
[1743241972524,6.38035252,605.62,605.36,0.27135686]
[1743241972724,5.88509596,605.61,605.36,0.27135686]
[1743241973024,5.88509596,605.6,605.36,0.27135686]
[1743241973221,5.88509596,605.59,605.36,0.27135686]
[1743241973421,5.88509596,605.58,605.36,0.27135686]
[1743241973622,3.73980944,605.57,605.36,0.27135686]
[1743241973916,3.73980944,605.56,605.36,0.27135686]
[1743241974121,2.82155272,605.57,605.36,0.27135686]
[1743241974122,2.26378767,605.55,605.36,0.27135686]
[1743241974323,2.26378767,605.54,605.36,0.27135686]
[1743241974618,2.26378767,605.53,605.36,0.27135686]
[1743241974825,1.34127406,605.52,605.36,0.27135686]
[1743241975020,0.92130215,605.51,605.36,0.27135686]
[1743241975222,1.08589521,605.52,605.36,0.27135686]
[1743241975419,0.92107121,605.51,605.36,0.27135686]
[1743241975724,1.08589521,605.52,605.36,0.27135686]
[1743241975925,1.08589521,605.5,605.36,0.27135686]
[1743241976722,1.08589521,605.49,605.36,0.27135686]
[1743241977419,1.62901176,605.86,605.36,0.27135686]
[1743241977623,6.36906266,605.85,605.36,0.27135686]
[1743241977818,6.36906266,605.84,605.36,0.27135686]
[1743241978027,6.36906266,605.83,605.36,0.27135686]
[1743241978226,6.36906266,605.82,605.35,0.28735632]
[1743241978418,6.36906266,605.81,605.36,0.2712841]
[1743241978618,3.73298218,605.8,605.36,0.2712841]
[1743241978923,2.25919079,605.79,605.36,0.2712841]
[1743241979127,2.25919079,605.78,605.36,0.2712841]
[1743241979323,2.25919079,605.77,605.28,0.2712841]
[1743241979519,2.25919079,605.76,605.35,0.28729583]
[1743241979720,0.92111962,605.75,605.36,0.2712841]
[1743241979922,0.92111962,605.74,605.36,0.2712841]
[1743241980227,1.99970527,605.73,605.36,0.2712841]
[1743241980418,1.07858565,605.73,605.36,0.2712841]
[1743241980623,0.92149843,605.72,605.36,0.2712841]
[1743241980822,1.07858565,605.73,605.36,0.2712841]
[1743241981023,2.80499278,605.71,605.36,0.2712841]
[1743241981328,0.92143913,605.7,605.36,0.2712841]
[1743241981522,0.92143913,605.69,605.36,0.2712841]
[1743241981722,0.92143913,605.68,605.36,0.2712841]
[1743241981922,1.07858565,605.7,605.36,0.2712841]
[1743241982122,0.92137463,605.69,605.36,0.2712841]
[1743241982323,0.92129259,605.68,605.32,0.2712841]
[1743241982620,1.07858565,605.68,605.35,0.28733497]
[1743241982817,1.07858565,605.68,605.36,0.2712841]
[1743241983022,1.07858565,605.67,605.36,0.2712841]
[1743241983420,1.07858565,605.66,605.36,0.2712841]
[1743241984024,1.62901176,606.01,605.36,0.2712841]
[1743241984221,6.37125139,606.0,605.36,0.2712841]
[1743241984418,6.37125139,605.99,605.36,0.2712841]
[1743241984623,6.37125139,605.98,605.36,0.2712841]
[1743241984823,6.37125139,605.97,605.36,0.2712841]
[1743241985025,6.37125139,605.96,605.44,1.23730318]
[1743241985225,6.37125139,605.95,605.44,1.23730318]
[1743241985525,6.37125139,605.94,605.45,0.2712841]
[1743241985725,6.37125139,605.93,605.45,0.2712841]
[1743241986024,5.87616775,605.92,605.45,0.2712841]
[1743241986225,2.39582172,605.91,605.45,0.2712841]
[1743241986425,5.87718802,605.9,605.45,0.2712841]
[1743241986726,5.87718802,605.89,605.46,0.27124995]
[1743241986922,5.87718802,605.88,605.45,0.27124995]
[1743241987122,5.87718802,605.87,605.46,0.27124995]
[1743241987321,5.87718802,605.86,605.47,0.27124995]
[1743241987524,6.37230104,605.85,605.45,0.27124995]
[1743241987828,6.37230104,605.84,605.46,0.27124995]
[1743241988026,6.37230104,605.83,605.44,0.27124995]
[1743241988226,6.37230104,605.82,605.45,0.27124995]
[1743241988424,6.37230104,605.81,605.44,0.27124995]
[1743241988628,6.37230104,605.8,605.45,0.27124995]
[1743241988831,6.37230104,605.79,605.44,0.27124995]
[1743241989031,6.37230104,605.78,605.44,0.27124995]
[1743241989225,6.37230104,605.77,605.44,0.27124995]
[1743241989425,6.37230104,605.76,605.44,0.27124995]
[1743241989630,5.87718802,605.75,605.44,0.27124995]
[1743241989931,5.87718802,605.74,605.44,0.27124995]
[1743241990131,5.87718802,605.73,605.39,0.27124995]
[1743241990331,5.88313696,605.72,605.4,0.27124995]
[1743241990631,5.88313696,605.71,605.41,0.27124995]
[1743241990825,5.88313696,605.7,605.39,0.27124995]
[1743241991028,5.88314878,605.69,605.39,0.27124995]
[1743241991231,3.73885522,605.68,605.39,0.27124995]
[1743241991531,3.73885522,605.67,605.4,0.27124995]
[1743241991725,3.73885522,605.66,605.4,0.27124995]
[1743241991929,2.26274498,605.65,605.41,0.27124995]
[1743241992229,3.7393982,605.64,605.42,0.27124995]
[1743241992431,6.37961447,605.63,605.39,0.27124995]
[1743241992732,6.37946783,605.62,605.4,0.27136839]
[1743241992928,6.37946783,605.61,605.32,0.27136839]
[1743241993228,6.37946783,605.6,605.33,0.27136839]
[1743241993427,5.88417939,605.59,605.32,0.27136839]
[1743241993632,5.88417939,605.58,605.32,0.27136839]
[1743241993834,5.88417939,605.57,605.32,0.27136839]
[1743241994127,3.73921459,605.56,605.32,0.27136839]
[1743241994331,3.74020791,605.55,605.32,0.27136839]
[1743241994532,3.7400963,605.54,605.31,0.28736937]
[1743241994728,2.26329789,605.53,605.32,0.27136839]
[1743241995035,5.06879197,605.52,605.32,0.27136839]
[1743241995231,2.26329789,605.51,605.32,0.27136839]
[1743241995433,2.26334032,605.5,605.32,0.27136839]
[1743241995629,0.92280023,605.49,605.32,0.27136839]
[1743241995935,0.92280023,605.48,605.32,0.27136839]
[1743241996133,1.07903618,605.49,605.32,0.27136839]
[1743241996333,1.07903618,605.47,605.32,0.27136839]
[1743241997136,2.60623767,605.71,605.32,0.27136839]
[1743241997137,1.07903618,605.46,605.32,0.27136839]
[1743241997531,1.07903618,605.46,605.31,0.28739192]
[1743241997734,1.07903618,605.46,605.32,0.27136839]
[1743241998133,1.07903618,605.45,605.32,0.27136839]
[1743241999234,1.07903618,605.44,605.32,0.27136839]
[1743242000132,1.07903618,605.43,605.32,0.27136839]
[1743242000331,1.07903618,605.43,605.33,0.27136839]
[1743242000537,1.07903618,605.43,605.31,0.28739904]
[1743242000737,1.07903618,605.43,605.32,0.27136839]
[1743242001440,1.62901176,605.74,605.32,0.27136839]
[1743242001632,6.37883378,605.73,605.32,0.27136839]
[1743242001831,6.37883378,605.72,605.32,0.27136839]
[1743242002031,6.37883378,605.71,605.32,0.27136839]
[1743242002235,6.37883378,605.7,605.31,0.28739904]
[1743242002436,6.37883378,605.69,605.31,0.28739904]
[1743242002731,5.88357368,605.68,605.31,0.28739904]
[1743242003033,5.88357368,605.67,605.31,0.28739904]
[1743242003240,5.88357368,605.66,605.2,1.23730318]
[1743242003537,3.73914328,605.65,605.29,0.28738005]